{"text_format":"1","workbook":"xlsx","n_sheets":16,"sheets":["Intro","Blank","11-220","11-382","11-362","11-187","11-215","11-160","11-154","11-389","11-391","11-196","11-397","11-468","11-481","Samlet"],"not_rendered":{"charts":0,"images":0,"macros":0,"external_links":0,"defined_names":0,"comments":0,"pivot_tables":0},"unopened":[],"bounds":{"document_bytes":16777216,"sheet_cells":100000,"rows_first":2000,"rows_last":500,"rows_between":2000,"halvings":0,"cell_chars":16384,"cell_head_chars":4096},"cells_cut":0,"cells_raw":0,"read":"whole","date_system":"1900"}

{"sheet":"Intro","index":0,"n_rows":11,"n_cols":1,"rows_kept":11,"cut":false,"hidden":false,"merged":[]}
[]
[]
[]
[]
["Sådan udfylder du de efterfølgende ark"]
[]
["Kopier arket \"Blank\", og udfyld for din ejendom om du ud fra hvert spørgsmål ligger i rød, gul eller grøn kategori."]
["Får du \"Rød\" opnår du 10 point. Får du \"Gul\" opnår du 5 point. Får du \"Grøn\" opnår du 0 point."]
["Herefter lægges pointene sammen inden for hver kategori og der ganges med vægtningsfaktoren."]
["Dette udføres for alle 3 kategorier og summeres op i \"forbedringspotentialet\" i bunden af arket."]
["Der er vedlagt eksempler for ejendomme som er undersøgt i forbindelse med projektet."]

{"sheet":"Blank","index":1,"n_rows":28,"n_cols":7,"rows_kept":28,"cut":false,"hidden":false,"merged":[[7,2,8,2],[7,3,7,5]]}
[null,null,"\"Tipskupon\" for skrivebordsskreening af ejendom"]
[]
[null,null,"Gennemgang af PKA erhvervsejendomme"]
[null,null,"Ejendomsnummer"]
[null,null,"Adresse"]
[]
[null,null,null,null,null,null,"Faktisk"]
["Kategori","Vægtning","Er der potentiale i at energi- og indeklimaskreene denne ejendom","Point"]
[null,"(%)",null,10,5,0]
["Basis",50,"Størrelse (m2)",">10.000",">5-10.000>","<5.000"]
[null,null,"Bygningsalder (år)","> 30","> 10-30 >","< 10"]
[null,null,"Opvarmningsform","El","gas/olie","Fjernvarme"]
[null,null,"Antal lejere i bygning",1,"2-3",">3"]
[null,null,"Husleje (kr./m2)","<750","<750-1200<",">1200"]
[null,null,"Tomgang (% ikke udlejet)",">25","5-25","<5"]
[null,null,"D&V budget (gennemsnitlig årlig kr./m2)",">150","50-150","<50"]
[null,null,"Restløbetid af lejekontrakt (år)","< 5 ","> 5-10 >","> 10"]
["Energi",25,"Målt forbrug, varme (kWh/m2)",">200",">100-200>","<100"]
[null,null,"Energimærkestatus","E-H","C-D","A-B"]
[null,null,"Energiomkostninger (kr./m2)","> 150","> 75-150 >","< 75"]
[null,null,"Faktisk forbrug >< Energimærke (faktor)",">1,3","1-1,3","<1"]
["Indeklima",25,"Indeklima installationer","naturlig","CAV","klimaanlæg"]
[null,null,"Central styring","intet","PLC","CTS"]
[null,null,"Indeklimaklager (DC/vicevært)","mange","nogle","få"]
[null,null,"Brugerafhjælpning","ingen","afskærmning","temperatur"]
[]
[]
[null,null,"Forbedringspotentialet",null,"%"]

{"sheet":"11-220","index":2,"n_rows":32,"n_cols":7,"rows_kept":32,"cut":false,"hidden":false,"merged":[[7,15,8,15],[7,16,7,18],[7,2,8,2],[7,3,7,5]]}
[null,null,"\"Tipskupon\" for skrivebordsskreening af ejendom"]
[]
[null,null,"Gennemgang af PKA erhvervsejendomme"]
[null,null,"Ejendomsnummer","11-220"]
[null,null,"Adresse","Ejby Industrivej 60-66, 2600 Glostrup"]
[null,null,"DC","Jack Hansen"]
[null,null,null,null,null,null,"Faktisk"]
[null,"Vægtning","Er der potentiale i at energi- og indeklimaskreene denne ejendom","Point"]
[null,"(%)",null,10,5,0]
["Basis",50,"Størrelse (m2)",">10.000",">5-10.000>","<5.000",3652]
[null,null,"Bygningsalder (år)","> 30","> 10-30 >","< 10",31]
[null,null,"Opvarmningsform","El","gas/olie","Fjernvarme","Fjernvarme"]
[null,null,"Antal lejere i bygning",1,"2-3",">3",3]
[null,null,"Husleje (kr./m2)","<750","<750-1200<",">1200",946]
[null,null,"Tomgang (% ikke udlejet)",">25","5-25","<5",2.5]
[null,null,"D&V budget (gennemsnitlig årlig kr./m2)",">150","50-150","<50",36]
[null,null,"Restløbetid af lejekontrakt (år)","< 5 ","> 5-10 >","> 10",1]
["Energi",25,"Målt forbrug, varme (kWh/m2)",">200",">100-200>","<100",76]
[null,null,"Energimærkestatus","E-H","C-D","A-B","-"]
[null,null,"Energiomkostninger (kr./m2)","> 150","> 75-150 >","< 75",40]
[null,null,"Faktisk forbrug >< Energimærke (faktor)",">1,3","1-1,3","<1","-"]
["Indeklima",25,"Indeklima installationer","naturlig","CAV","klimaanlæg","CAV"]
[null,null,"Central styring","intet","PLC","CTS","-"]
[null,null,"Indeklimaklager (DC/vicevært)","mange","nogle","få","nogle"]
[null,null,"Brugerafhjælpning","ingen","afskærmning","temperatur","afskærmning"]
[]
[]
[null,null,"Forbedringspotentialet",{"$f":"50*25/80+15*25/40","v":25},"%"]
[]
[]
[]
["Note:",null,"Har ikke et energimærke idet ejendom benyttes til industri."]

{"sheet":"11-382","index":3,"n_rows":28,"n_cols":7,"rows_kept":28,"cut":false,"hidden":false,"merged":[[7,16,7,18],[7,11,8,11],[7,12,7,14],[7,2,8,2],[7,3,7,5]]}
[null,null,"\"Tipskupon\" for skrivebordsskreening af ejendom"]
[]
[null,null,"Gennemgang af PKA erhvervsejendomme"]
[null,null,"Ejendomsnummer","11-382"]
[null,null,"Adresse","Taastrup Hovedgade 101, 2630 Tåstrup"]
[null,null,"DC","Kenneth Johansen"]
[null,null,null,null,null,null,"Faktisk"]
[null,"Vægtning","Er der potentiale i at energi- og indeklimaskreene denne ejendom","Point"]
[null,"(%)",null,10,5,0]
["Basis",50,"Størrelse (m2)",">10.000",">5-10.000>","<5.000",1593]
[null,null,"Bygningsalder (år)","> 30","> 10-30 >","< 10",43]
[null,null,"Opvarmningsform","El","gas/olie","Fjernvarme","fjernvarme"]
[null,null,"Antal lejere i bygning",1,"2-3",">3",6]
[null,null,"Husleje (kr./m2)","<750","<750-1200<",">1200",1001]
[null,null,"Tomgang (% ikke udlejet)",">25","5-25","<5",17]
[null,null,"D&V budget (gennemsnitlig årlig kr./m2)",">150","50-150","<50",112]
[null,null,"Restløbetid af lejekontrakt (år)","< 5 ","> 5-10 >","> 10",1]
["Energi",25,"Målt forbrug, varme (kWh/m2)",">200",">100-200>","<100",162]
[null,null,"Energimærkestatus","E-H","C-D","A-B","E"]
[null,null,"Energiomkostninger (kr./m2)","> 150","> 75-150 >","< 75",174]
[null,null,"Faktisk forbrug >< Energimærke (faktor)",">1,3","1-1,3","<1",2]
["Indeklima",25,"Indeklima installationer","naturlig","CAV","klimaanlæg","CAV"]
[null,null,"Central styring","intet","PLC","CTS","PLC"]
[null,null,"Indeklimaklager (DC/vicevært)","mange","nogle","få","få"]
[null,null,"Brugerafhjælpning","ingen","afskærmning","temperatur","afskærmning"]
[]
[]
[null,null,"Forbedringspotentialet",{"$f":"50*35/80+25*35/40+15*25/40","v":53.125},"%"]

{"sheet":"11-362","index":4,"n_rows":28,"n_cols":7,"rows_kept":28,"cut":false,"hidden":false,"merged":[[7,15,8,15],[7,16,7,18],[7,2,8,2],[7,3,7,5]]}
[null,null,"\"Tipskupon\" for skrivebordsskreening af ejendom"]
[]
[null,null,"Gennemgang af PKA erhvervsejendomme"]
[null,null,"Ejendomsnummer","11-362"]
[null,null,"Adresse","Vibeholmsvej 17, 2605 Brøndby"]
[null,null,"DC","Carsten Jensen"]
[null,null,null,null,null,null,"Faktisk"]
[null,"Vægtning","Er der potentiale i at energi- og indeklimaskreene denne ejendom","Point"]
[null,"(%)",null,10,5,0]
["Basis",50,"Størrelse (m2)",">10.000",">5-10.000>","<5.000",2922]
[null,null,"Bygningsalder (år)","> 30","> 10-30 >","< 10",30]
[null,null,"Opvarmningsform","El","gas/olie","Fjernvarme","gas"]
[null,null,"Antal lejere i bygning",1,"2-3",">3",3]
[null,null,"Husleje (kr./m2)","<750","<750-1200<",">1200",1215]
[null,null,"Tomgang (% ikke udlejet)",">25","5-25","<5",0]
[null,null,"D&V budget (gennemsnitlig årlig kr./m2)",">150","50-150","<50",47]
[null,null,"Restløbetid af lejekontrakt (år)","< 5 ","> 5-10 >","> 10",1]
["Energi",25,"Målt forbrug, varme (kWh/m2)",">200",">100-200>","<100",162]
[null,null,"Energimærkestatus","E-H","C-D","A-B","E"]
[null,null,"Energiomkostninger (kr./m2)","> 150","> 75-150 >","< 75",100]
[null,null,"Faktisk forbrug >< Energimærke (faktor)",">1,3","1-1,3","<1",1.4]
["Indeklima",25,"Indeklima installationer","naturlig","CAV","klimaanlæg","CAV"]
[null,null,"Central styring","intet","PLC","CTS","CTS"]
[null,null,"Indeklimaklager (DC/vicevært)","mange","nogle","få","-"]
[null,null,"Brugerafhjælpning","ingen","afskærmning","temperatur","-"]
[]
[]
[null,null,"Forbedringspotentialet",{"$f":"(30*0.5/80+30*0.25/40+5*0.25/40)*100","v":40.625},"%"]

{"sheet":"11-187","index":5,"n_rows":28,"n_cols":7,"rows_kept":28,"cut":false,"hidden":false,"merged":[[7,12,8,12],[7,13,7,15],[7,2,8,2],[7,3,7,5]]}
[null,null,"\"Tipskupon\" for skrivebordsskreening af ejendom"]
[]
[null,null,"Gennemgang af PKA erhvervsejendomme"]
[null,null,"Ejendomsnummer","11-187"]
[null,null,"Adresse","Tornerosevej 127, 2730 Herlev"]
[null,null,"DC","Kenneth Johansen"]
[null,null,null,null,null,null,"Faktisk"]
[null,"Vægtning","Er der potentiale i at energi- og indeklimaskreene denne ejendom","Point"]
[null,"(%)",null,10,5,0]
["Basis",50,"Størrelse (m2)",">10.000",">5-10.000>","<5.000",1656]
[null,null,"Bygningsalder (år)","> 30","> 10-30 >","< 10",30]
[null,null,"Opvarmningsform","El","gas/olie","Fjernvarme","gas"]
[null,null,"Antal lejere i bygning",1,"2-3",">3",10]
[null,null,"Husleje (kr./m2)","<750","<750-1200<",">1200",683]
[null,null,"Tomgang (% ikke udlejet)",">25","5-25","<5",5.2]
[null,null,"D&V budget (gennemsnitlig årlig kr./m2)",">150","50-150","<50",144]
[null,null,"Restløbetid af lejekontrakt (år)","< 5 ","> 5-10 >","> 10",1]
["Energi",25,"Målt forbrug, varme (kWh/m2)",">200",">100-200>","<100",56]
[null,null,"Energimærkestatus","E-H","C-D","A-B","G "]
[null,null,"Energiomkostninger (kr./m2)","> 150","> 75-150 >","< 75",1593]
[null,null,"Faktisk forbrug >< Energimærke (faktor)",">1,3","1-1,3","<1",1.6]
["Indeklima",25,"Indeklima installationer","naturlig","CAV","klimaanlæg","naturlig"]
[null,null,"Central styring","intet","PLC","CTS","intet"]
[null,null,"Indeklimaklager (DC/vicevært)","mange","nogle","få","få"]
[null,null,"Brugerafhjælpning","ingen","afskærmning","temperatur","ingen"]
[]
[]
[null,null,"Forbedringspotentialet",{"$f":"40*50/80+30*25/40+30*25/40","v":62.5},"%"]

{"sheet":"11-215","index":6,"n_rows":28,"n_cols":7,"rows_kept":28,"cut":false,"hidden":false,"merged":[[7,14,8,14],[7,15,7,17],[7,2,8,2],[7,3,7,5]]}
[null,null,"\"Tipskupon\" for skrivebordsskreening af ejendom"]
[]
[null,null,"Gennemgang af PKA erhvervsejendomme"]
[null,null,"Ejendomsnummer","11-215"]
[null,null,"Adresse","Nørre Voldgade 90-92, 1358 København K."]
[null,null,"DC","Kenneth Johansen"]
[null,null,null,null,null,null,"Faktisk"]
[null,"Vægtning","Er der potentiale i at energi- og indeklimaskreene denne ejendom","Point"]
[null,"(%)",null,10,5,0]
["Basis",50,"Størrelse (m2)",">10.000",">5-10.000>","<5.000",7649]
[null,null,"Bygningsalder (år)","> 30","> 10-30 >","< 10",141]
[null,null,"Opvarmningsform","El","gas/olie","Fjernvarme","fjernvarme"]
[null,null,"Antal lejere i bygning",1,"2-3",">3",26]
[null,null,"Husleje (kr./m2)","<750","<750-1200<",">1200",1205]
[null,null,"Tomgang (% ikke udlejet)",">25","5-25","<5",34]
[null,null,"D&V budget (gennemsnitlig årlig kr./m2)",">150","50-150","<50",50.1]
[null,null,"Restløbetid af lejekontrakt (år)","< 5 ","> 5-10 >","> 10","0-5"]
["Energi",25,"Målt forbrug, varme (kWh/m2)",">200",">100-200>","<100",77]
[null,null,"Energimærkestatus","E-H","C-D","A-B","E"]
[null,null,"Energiomkostninger (kr./m2)","> 150","> 75-150 >","< 75",59]
[null,null,"Faktisk forbrug >< Energimærke (faktor)",">1,3","1-1,3","<1",0.7]
["Indeklima",25,"Indeklima installationer","naturlig","CAV","klimaanlæg","naturlig"]
[null,null,"Central styring","intet","PLC","CTS","intet"]
[null,null,"Indeklimaklager (DC/vicevært)","mange","nogle","få","nogle"]
[null,null,"Brugerafhjælpning","ingen","afskærmning","temperatur","afskærmning"]
[]
[]
[null,null,"Forbedringspotentialet",{"$f":"40*50/80+10*25/40+30*25/40","v":50},"%"]

{"sheet":"11-160","index":7,"n_rows":28,"n_cols":7,"rows_kept":28,"cut":false,"hidden":false,"merged":[[7,14,8,14],[7,15,7,17],[7,2,8,2],[7,3,7,5]]}
[null,null,"\"Tipskupon\" for skrivebordsskreening af ejendom"]
[]
[null,null,"Gennemgang af PKA erhvervsejendomme"]
[null,null,"Ejendomsnummer","11-160"]
[null,null,"Adresse","Bredevej 2, 2830 Virum"]
[null,null,"DC","Kenneth Johansen"]
[null,null,null,null,null,null,"Faktisk"]
[null,"Vægtning","Er der potentiale i at energi- og indeklimaskreene denne ejendom","Point"]
[null,"(%)",null,10,5,0]
["Basis",50,"Størrelse (m2)",">10.000",">5-10.000>","<5.000",17537]
[null,null,"Bygningsalder (år)","> 30","> 10-30 >","< 10","32/64"]
[null,null,"Opvarmningsform","El","gas/olie","Fjernvarme","gas"]
[null,null,"Antal lejere i bygning",1,"2-3",">3",4]
[null,null,"Husleje (kr./m2)","<750","<750-1200<",">1200",923]
[null,null,"Tomgang (% ikke udlejet)",">25","5-25","<5",64]
[null,null,"D&V budget (gennemsnitlig årlig kr./m2)",">150","50-150","<50",32]
[null,null,"Restløbetid af lejekontrakt (år)","< 5 ","> 5-10 >","> 10",1]
["Energi",25,"Målt forbrug, varme (kWh/m2)",">200",">100-200>","<100",95]
[null,null,"Energimærkestatus","E-H","C-D","A-B","E"]
[null,null,"Energiomkostninger (kr./m2)","> 150","> 75-150 >","< 75",182]
[null,null,"Faktisk forbrug >< Energimærke (faktor)",">1,3","1-1,3","<1",1.1000000000000001]
["Indeklima",25,"Indeklima installationer","naturlig","CAV","klimaanlæg","CAV"]
[null,null,"Central styring","intet","PLC","CTS","CTS"]
[null,null,"Indeklimaklager (DC/vicevært)","mange","nogle","få","nogle"]
[null,null,"Brugerafhjælpning","ingen","afskærmning","temperatur","afskærmning"]
[]
[]
[null,null,"Forbedringspotentialet",{"$f":"50*50/80+25*25/40+15*25/40","v":56.25},"%"]

{"sheet":"11-154","index":8,"n_rows":28,"n_cols":7,"rows_kept":28,"cut":false,"hidden":false,"merged":[[7,12,8,12],[7,13,7,15],[7,2,8,2],[7,3,7,5]]}
[null,null,"\"Tipskupon\" for skrivebordsskreening af ejendom"]
[]
[null,null,"Gennemgang af PKA erhvervsejendomme"]
[null,null,"Ejendomsnummer","11-154"]
[null,null,"Adresse","Sophie Brahes Gade 50, 3000 Helsingør"]
[null,null,"DC","Torben Dalskjær"]
[null,null,null,null,null,null,"Faktisk"]
[null,"Vægtning","Er der potentiale i at energi- og indeklimaskreene denne ejendom","Point"]
[null,"(%)",null,10,5,0]
["Basis",50,"Størrelse (m2)",">10.000",">5-10.000>","<5.000",2152]
[null,null,"Bygningsalder (år)","> 30","> 10-30 >","< 10",139]
[null,null,"Opvarmningsform","El","gas/olie","Fjernvarme","fjernvarme"]
[null,null,"Antal lejere i bygning",1,"2-3",">3",7]
[null,null,"Husleje (kr./m2)","<750","<750-1200<",">1200",848]
[null,null,"Tomgang (% ikke udlejet)",">25","5-25","<5",19]
[null,null,"D&V budget (gennemsnitlig årlig kr./m2)",">150","50-150","<50",83]
[null,null,"Restløbetid af lejekontrakt (år)","< 5 ","> 5-10 >","> 10",1]
["Energi",25,"Målt forbrug, varme (kWh/m2)",">200",">100-200>","<100",64]
[null,null,"Energimærkestatus","E-H","C-D","A-B","E"]
[null,null,"Energiomkostninger (kr./m2)","> 150","> 75-150 >","< 75",50]
[null,null,"Faktisk forbrug >< Energimærke (faktor)",">1,3","1-1,3","<1",1.6]
["Indeklima",25,"Indeklima installationer","naturlig","CAV","klimaanlæg","CAV"]
[null,null,"Central styring","intet","PLC","CTS","PLC"]
[null,null,"Indeklimaklager (DC/vicevært)","mange","nogle","få","få"]
[null,null,"Brugerafhjælpning","ingen","afskærmning","temperatur","ingen"]
[]
[]
[null,null,"Forbedringspotentialet",{"$f":"35*50/80+20*25/40+20*25/40","v":46.875},"%"]

{"sheet":"11-389","index":9,"n_rows":28,"n_cols":7,"rows_kept":28,"cut":false,"hidden":false,"merged":[[7,11,8,11],[7,12,7,14],[7,2,8,2],[7,3,7,5]]}
[null,null,"\"Tipskupon\" for skrivebordsskreening af ejendom"]
[]
[null,null,"Gennemgang af PKA erhvervsejendomme"]
[null,null,"Ejendomsnummer","11-389"]
[null,null,"Adresse","Vestergade 9B-13, 8600 Silkeborg"]
[null,null,"DC","Rasmus jensen"]
[null,null,null,null,null,null,"Faktisk"]
[null,"Vægtning","Er der potentiale i at energi- og indeklimaskreene denne ejendom","Point"]
[null,"(%)",null,10,5,0]
["Basis",50,"Størrelse (m2)",">10.000",">5-10.000>","<5.000",1670]
[null,null,"Bygningsalder (år)","> 30","> 10-30 >","< 10",116]
[null,null,"Opvarmningsform","El","gas/olie","Fjernvarme","fjernv."]
[null,null,"Antal lejere i bygning",1,"2-3",">3",1]
[null,null,"Husleje (kr./m2)","<750","<750-1200<",">1200",1163]
[null,null,"Tomgang (% ikke udlejet)",">25","5-25","<5",0]
[null,null,"D&V budget (gennemsnitlig årlig kr./m2)",">150","50-150","<50",48]
[null,null,"Restløbetid af lejekontrakt (år)","< 5 ","> 5-10 >","> 10"]
["Energi",25,"Målt forbrug, varme (kWh/m2)",">200",">100-200>","<100",44.8]
[null,null,"Energimærkestatus","E-H","C-D","A-B","E"]
[null,null,"Energiomkostninger (kr./m2)","> 150","> 75-150 >","< 75",34.4]
[null,null,"Faktisk forbrug >< Energimærke (faktor)",">1,3","1-1,3","<1",1.9]
["Indeklima",25,"Indeklima installationer","naturlig","CAV","klimaanlæg","delvis naturlig, delvis mekanisk"]
[null,null,"Central styring","intet","PLC","CTS"]
[null,null,"Indeklimaklager (DC/vicevært)","mange","nogle","få"]
[null,null,"Brugerafhjælpning","ingen","afskærmning","temperatur"]
[]
[]
[null,null,"Forbedringspotentialet",{"$f":"35*50/80+20*25/40+30*25/40","v":53.125},"%"]

{"sheet":"11-391","index":10,"n_rows":28,"n_cols":7,"rows_kept":28,"cut":false,"hidden":false,"merged":[[7,11,8,11],[7,12,7,14],[7,2,8,2],[7,3,7,5]]}
[null,null,"\"Tipskupon\" for skrivebordsskreening af ejendom"]
[]
[null,null,"Gennemgang af PKA erhvervsejendomme"]
[null,null,"Ejendomsnummer","11-391"]
[null,null,"Adresse","Vestergade 1, 8800 Viborg"]
[null,null,"DC","Rasmus Jensen"]
[null,null,null,null,null,null,"Faktisk"]
[null,"Vægtning","Er der potentiale i at energi- og indeklimaskreene denne ejendom","Point"]
[null,"(%)",null,10,5,0]
["Basis",50,"Størrelse (m2)",">10.000",">5-10.000>","<5.000",1893]
[null,null,"Bygningsalder (år)","> 30","> 10-30 >","< 10",55]
[null,null,"Opvarmningsform","El","gas/olie","Fjernvarme","fjernv."]
[null,null,"Antal lejere i bygning",1,"2-3",">3",3]
[null,null,"Husleje (kr./m2)","<750","<750-1200<",">1200",614]
[null,null,"Tomgang (% ikke udlejet)",">25","5-25","<5",50.2]
[null,null,"D&V budget (gennemsnitlig årlig kr./m2)",">150","50-150","<50",152.5]
[null,null,"Restløbetid af lejekontrakt (år)","< 5 ","> 5-10 >","> 10"]
["Energi",25,"Målt forbrug, varme (kWh/m2)",">200",">100-200>","<100",51.9]
[null,null,"Energimærkestatus","E-H","C-D","A-B","E"]
[null,null,"Energiomkostninger (kr./m2)","> 150","> 75-150 >","< 75",126.9]
[null,null,"Faktisk forbrug >< Energimærke (faktor)",">1,3","1-1,3","<1",0.9]
["Indeklima",25,"Indeklima installationer","naturlig","CAV","klimaanlæg","delvis naturlig og mekanisk"]
[null,null,"Central styring","intet","PLC","CTS"]
[null,null,"Indeklimaklager (DC/vicevært)","mange","nogle","få"]
[null,null,"Brugerafhjælpning","ingen","afskærmning","temperatur"]
[]
[]
[null,null,"Forbedringspotentialet",{"$f":"55*50/80+15*25/40+15*25/40","v":53.125},"%"]

{"sheet":"11-196","index":11,"n_rows":46,"n_cols":7,"rows_kept":46,"cut":false,"hidden":false,"merged":[[7,13,8,13],[7,14,7,16],[7,2,8,2],[7,3,7,5]]}
[null,null,"\"Tipskupon\" for skrivebordsskreening af ejendom"]
[]
[null,null,"Gennemgang af PKA erhvervsejendomme"]
[null,null,"Ejendomsnummer","11-196"]
[null,null,"Adresse","Strandparken 48 B, 7900 Nykøbing Mors"]
[null,null,"DC","Rasmus Jensen"]
[null,null,null,null,null,null,"Faktisk"]
[null,"Vægtning","Er der potentiale i at energi- og indeklimaskreene denne ejendom","Point"]
[null,"(%)",null,10,5,0]
["Basis",50,"Størrelse (m2)",">10.000",">5-10.000>","<5.000",1596]
[null,null,"Bygningsalder (år)","> 30","> 10-30 >","< 10",54]
[null,null,"Opvarmningsform","El","gas/olie","Fjernvarme","fjernv."]
[null,null,"Antal lejere i bygning",1,"2-3",">3",1]
[null,null,"Husleje (kr./m2)","<750","<750-1200<",">1200",580]
[null,null,"Tomgang (% ikke udlejet)",">25","5-25","<5",0]
[null,null,"D&V budget (gennemsnitlig årlig kr./m2)",">150","50-150","<50",40.200000000000003]
[null,null,"Restløbetid af lejekontrakt (år)","< 5 ","> 5-10 >","> 10"]
["Energi",25,"Målt forbrug, varme (kWh/m2)",">200",">100-200>","<100","-"]
[null,null,"Energimærkestatus","E-H","C-D","A-B","E"]
[null,null,"Energiomkostninger (kr./m2)","> 150","> 75-150 >","< 75","-"]
[null,null,"Faktisk forbrug >< Energimærke (faktor)",">1,3","1-1,3","<1","-"]
["Indeklima",25,"Indeklima installationer","naturlig","CAV","klimaanlæg","delvis, naturlig, mekanisk og m. køling"]
[null,null,"Central styring","intet","PLC","CTS","CTS"]
[null,null,"Indeklimaklager (DC/vicevært)","mange","nogle","få","ingen"]
[null,null,"Brugerafhjælpning","ingen","afskærmning","temperatur","persienner"]
[]
[]
[null,null,"Forbedringspotentialet",{"$f":"40*50/80+10*25/10+5*25/40","v":53.125},"%"]
[]
[]
[]
["Andet:","Sygehus"]
[]
[]
[]
[]
[]
[]
[]
[]
[]
[]
[]
[]
[]
[null,null,"Ikke på MinEnergi"]

{"sheet":"11-397","index":12,"n_rows":36,"n_cols":18,"rows_kept":36,"cut":false,"hidden":true,"merged":[[7,0,8,0],[7,1,7,3]]}
["\"Tipskupon\" for skrivebordsskreening af ejendom"]
[]
["Gennemgang af PKA erhvervsejendomme"]
["Ejendomsnummer","11-397"]
["Adresse","Algade 41-51, 9000 Aalborg"]
[]
[null,null,null,null,"Faktisk"]
["Er der potentiale i at energiskreene denne ejendom","Point"]
[null,10,5,0]
["Restløbetid af lejekontrakt (år)","< 5 ","> 5-10 >","> 10"]
["Energimærkestatus","E-H","C-D","A-B","E"]
["Størrelse (m2)",">10.000",">5-10.000>","<5.000",3566,null,null,null,null,null,null,null,"SOLGT"]
["Målt forbrug, varme (kWh/m2)",">200",">100-200>","<100",129.19999999999999]
["Faktisk forbrug >< Energimærke (faktor)",">1,3","1-1,3","<1",1.1000000000000001,null,null,413299]
["Opvarmningsform","El","gas/olie","Fjernvarme","Fj.",null,{"$f":"H15/E13","v":1.0876942090209625},{"$f":"H14/H17","v":140.53009180550833},null,null,{"$f":"228000/0.6","v":380000}]
["Antal lejere i bygning",1,"2-3",">3","?",null,null,null,null,null,{"$f":"K15/H17","v":129.20775246514791}]
["Bygningsalder (år)","> 30","> 10-30 >","< 10","54 år",null,3566,2941]
["Energiomkostninger (kr./m2)","> 150","> 75-150 >","< 75"]
["Husleje (kr./m2)","<750","<750-1200<",">1200",1102,null,null,3930927]
[null,null,null,null,null,null,null,{"$f":"H19/G17","v":1102.3351093662368}]
["Antal point samlet:",45,{"$f":"B21/80*100","v":56.25},"%"]
[]
[]
[]
[]
[]
[]
[]
[null,null,null,null,null,null,null,null,null,null,null,null,null,null,null,null,null,{"$f":"248400/23","v":10800}]
[null,null,null,null,null,null,null,null,null,null,null,null,null,null,null,null,null,{"$f":"26000/7","v":3714.2857142857142}]
[null,null,null,null,null,null,null,null,null,null,null,null,null,null,null,null,null,{"$f":"R30*5","v":18571.428571428572}]
[]
[]
[]
[]
[null,null,null,null,null,null,null," "]

{"sheet":"11-468","index":13,"n_rows":30,"n_cols":7,"rows_kept":30,"cut":false,"hidden":false,"merged":[[7,13,8,13],[7,14,7,16],[7,2,8,2],[7,3,7,5]]}
[null,null,"\"Tipskupon\" for skrivebordsskreening af ejendom"]
[]
[null,null,"Gennemgang af PKA erhvervsejendomme"]
[null,null,"Ejendomsnummer","11-468"]
[null,null,"Adresse","Pederstrupvej 93, 2750 Ballerup"]
[null,null,"DC","Kenneth Johansen"]
[null,null,null,null,null,null,"Faktisk"]
[null,"Vægtning","Er der potentiale i at energi- og indeklimaskreene denne ejendom","Point"]
[null,"(%)",null,10,5,0]
["Basis",50,"Størrelse (m2)",">10.000",">5-10.000>","<5.000",9555]
[null,null,"Bygningsalder (år)","> 30","> 10-30 >","< 10",17]
[null,null,"Opvarmningsform","El","gas/olie","Fjernvarme","fjernv."]
[null,null,"Antal lejere i bygning",1,"2-3",">3",1]
[null,null,"Husleje (kr./m2)","<750","<750-1200<",">1200",768.2]
[null,null,"Tomgang (% ikke udlejet)",">25","5-25","<5",0]
[null,null,"D&V budget (gennemsnitlig årlig kr./m2)",">150","50-150","<50",19.2]
[null,null,"Restløbetid af lejekontrakt (år)","< 5 ","> 5-10 >","> 10"]
["Energi",25,"Målt forbrug, varme (kWh/m2)",">200",">100-200>","<100","-"]
[null,null,"Energimærkestatus","E-H","C-D","A-B","G"]
[null,null,"Energiomkostninger (kr./m2)","> 150","> 75-150 >","< 75","-"]
[null,null,"Faktisk forbrug >< Energimærke (faktor)",">1,3","1-1,3","<1","-"]
["Indeklima",25,"Indeklima installationer","naturlig","CAV","klimaanlæg","mekanisk vent"]
[null,null,"Central styring","intet","PLC","CTS","CTS"]
[null,null,"Indeklimaklager (DC/vicevært)","mange","nogle","få"]
[null,null,"Brugerafhjælpning","ingen","afskærmning","temperatur"]
[]
[]
[null,null,"Forbedringspotentialet",{"$f":"35*50/80+10*25/10+0","v":46.875},"%"]
[]
["Domicilejendom. Styrer selv automatik og indeklima"]

{"sheet":"11-481","index":14,"n_rows":29,"n_cols":7,"rows_kept":29,"cut":false,"hidden":false,"merged":[[7,12,8,12],[7,13,7,15],[8,2,9,2],[8,3,8,5]]}
[null,null,"\"Tipskupon\" for skrivebordsskreening af ejendom"]
[]
[null,null,"Gennemgang af PKA erhvervsejendomme"]
[null,null,"Ejendomsnummer","11-481"]
[null,null,"Adresse","Fjordvej 154-155, 6000 Kolding"]
[null,null,"Bemærkning","Hotel Kolding Fjord"]
[null,null,"DC","Lars lindegaard olsen"]
[null,null,null,null,null,null,"Faktisk"]
[null,"Vægtning","Er der potentiale i at energi- og indeklimaskreene denne ejendom","Point"]
[null,"(%)",null,10,5,0]
["Basis",50,"Størrelse (m2)",">10.000",">5-10.000>","<5.000",9216]
[null,null,"Bygningsalder (år)","> 30","> 10-30 >","< 10",107]
[null,null,"Opvarmningsform","El","gas/olie","Fjernvarme","fjernv."]
[null,null,"Antal lejere i bygning",1,"2-3",">3",1]
[null,null,"Husleje (kr./m2)","<750","<750-1200<",">1200",663.5]
[null,null,"Tomgang (% ikke udlejet)",">25","5-25","<5",0]
[null,null,"D&V budget (gennemsnitlig årlig kr./m2)",">150","50-150","<50",262.89999999999998]
[null,null,"Restløbetid af lejekontrakt (år)","< 5 ","> 5-10 >","> 10"]
["Energi",25,"Målt forbrug, varme (kWh/m2)",">200",">100-200>","<100",111.9]
[null,null,"Energimærkestatus","E-H","C-D","A-B","E"]
[null,null,"Energiomkostninger (kr./m2)","> 150","> 75-150 >","< 75","-"]
[null,null,"Faktisk forbrug >< Energimærke (faktor)",">1,3","1-1,3","<1","-"]
["Indeklima",25,"Indeklima installationer","naturlig","CAV","klimaanlæg","naturlig og mekanisk"]
[null,null,"Central styring","intet","PLC","CTS"]
[null,null,"Indeklimaklager (DC/vicevært)","mange","nogle","få"]
[null,null,"Brugerafhjælpning","ingen","afskærmning","temperatur"]
[]
[]
[null,null,"Forbedringspotentialet",{"$f":"55*50/80+15*25/40+25*25/40","v":59.375},"%"]

{"sheet":"Samlet","index":15,"n_rows":16,"n_cols":6,"rows_kept":16,"cut":false,"hidden":false,"merged":[]}
["Resultater"]
[]
["Ejendomsnummer","Energirenoveringspotentialet, %","Ejd. over 50 %","Ejd. over 60 %","Ejd. over 70 %"]
["11-220",25]
["11-382",53.1,1]
["11-362",40.6]
["11-189",62.5,1,1]
["11-215",50]
["11-160",56.3,1]
["11-154",46.9]
["11-389",53.1,1]
["11-391",53.1,1]
["11-196",53.1,1]
["11-468",46.9]
["11-481",59.4,1]
[null,null,{"$f":"SUM(C4:C15)","v":7},{"$f":"SUM(D4:D15)","v":1},{"$f":"SUM(E4:E15)","v":0},"stk."]